fUSD/lending_fUSD_20250109
["ID","MTS","AMOUNT","RATE_DAILY","PERIOD"]
[348311708,1736441458439,-1107.02,0.00010345,2]
[348311709,1736441458452,-885.0,0.00010345,2]
[348311710,1736441458462,-1251.14,0.00010345,2]
[348311711,1736441458471,-744.19,0.00010345,2]
[348311712,1736441458480,-500.0,0.00010345,2]
[348311713,1736441458489,-628.0,0.00010345,2]
[348311714,1736441458500,-500.0,0.00010345,2]
[348311715,1736441458509,-1456.64,0.00010345,2]
[348311716,1736441458518,-733.74,0.00010345,2]
[348311717,1736441458528,-1452.42,0.00010345,2]
[348311718,1736441458539,-2541.11,0.00010345,2]
[348311719,1736441458547,-500.0,0.00010345,2]
[348311720,1736441458558,-1371.36,0.00010345,2]
[348311721,1736441458568,-500.0,0.00010345,2]
[348311722,1736441458577,-2305.56,0.00010345,2]
[348311723,1736441458587,-674.85,0.00010345,2]
[348311724,1736441458596,-500.0,0.00010345,2]
[348311725,1736441458605,-737.47,0.00010345,2]
[348311726,1736441458616,-500.0,0.00010345,2]
[348311727,1736441458625,-500.0,0.00010345,2]
[348311728,1736441458635,-2187.25,0.00010345,2]
[348311729,1736441458644,-818.96,0.00010345,2]
[348311730,1736441458653,-2081.65,0.00010345,2]
[348311731,1736441458662,-500.0,0.00010345,2]
[348311732,1736441458672,-2838.32,0.00010345,2]
[348311733,1736441458681,-5040.93,0.00010345,2]
[348311734,1736441458690,-1701.34,0.00010345,2]
[348311735,1736441458699,-500.0,0.00010345,2]
[348311736,1736441458709,-811.8,0.00010345,2]
[348311737,1736441458719,-2409.29,0.00010345,2]
[348311738,1736441458728,-546.38,0.00010345,2]
[348311739,1736441458738,-2443.67,0.00010345,2]
[348311740,1736441458748,-2955.96,0.00010345,2]
[348311741,1736441458759,-842.42,0.00010345,2]
[348311742,1736441458768,-807.32,0.00010345,2]
[348311743,1736441458778,-951.84,0.00010346,2]
[348311744,1736441458788,-951.84,0.00010346,2]
[348311745,1736441458797,-586.19,0.00010346,2]
[348311746,1736441458807,-1510.51,0.00010346,2]
[348311747,1736441458817,-816.63,0.00010346,2]
[348311748,1736441458827,-2440.13,0.00010346,2]
[348311749,1736441458837,-2048.03,0.00010346,2]
[348311750,1736441458846,-2748.95,0.00010346,2]
[348311751,1736441458855,-2460.69,0.00010346,2]
[348311752,1736441458865,-4998.03,0.00010346,2]
[348311753,1736441458874,-12407.55,0.00010346,2]
[348311754,1736441458884,-1891.85,0.00010346,2]
[348311755,1736441458893,-754.63,0.00010346,2]
[348311756,1736441458903,-1072.78,0.00010346,2]
[348311757,1736441458912,-3521.15,0.00010346,2]
[348311758,1736441458921,-500.0,0.00010346,2]
[348311759,1736441458931,-1086.63,0.00010346,2]
[348311760,1736441458940,-1549.11,0.00010346,2]
[348311761,1736441458950,-611.89,0.00010346,2]
[348311762,1736441458959,-1000.0,0.00010346,2]
[348311763,1736441458969,-2274.81,0.00010346,2]
[348311764,1736441458979,-1114.39,0.00010346,2]
[348311765,1736441458988,-500.0,0.00010347,2]
[348311766,1736441458998,-3151.26,0.00010347,2]
[348311767,1736441459009,-2445.76,0.00010347,2]
[348311768,1736441459020,-150.0,0.0001036,2]
[348311769,1736441459030,-1150.0,0.00010373,2]
[348311770,1736441459040,-150.0,0.00010377,2]
[348311771,1736441459050,-150.0,0.00010378,2]
[348311772,1736441459059,-714.96,0.00010409,2]
[348311773,1736441459069,-500.0,0.0001041,2]
[348311774,1736441459079,-680.36,0.00010417,2]
[348311775,1736441459088,-53180.7149079,0.00010417,2]
[348311776,1736441459098,-150.0,0.00010438,2]
[348311777,1736441459107,-882.79282991,0.00010441,2]
[348311778,1736441459116,-44890.23700186,0.000105,2]
[348311779,1736441459125,-150.0,0.00010515,2]
[348311780,1736441459135,-1000.0,0.00010521,2]
[348311781,1736441459145,-500.0,0.00010547,2]
[348311782,1736441459154,-882.79282991,0.00010548,2]
[348311783,1736441459163,-14711.989696,0.000106,2]
[348311784,1736441459173,-150.0,0.00010605,2]
[348311785,1736441459182,-360.24307833,0.00010605,2]
[348311786,1736441459191,-150.0,0.00010612,2]
[348311787,1736441459201,-500.0,0.00010617,2]
[348311788,1736441459210,-855.78,0.00010617,2]
[348311789,1736441459220,-500.0,0.00010617,2]
[348311790,1736441459230,-500.0,0.00010617,2]
[348311791,1736441459239,-500.0,0.00010617,2]
[348311792,1736441459249,-500.0,0.00010617,2]
[348311793,1736441459258,-1371.03,0.00010617,2]
[348311794,1736441459267,-782.88,0.00010617,2]
[348311795,1736441459282,-889.52,0.00010617,2]
[348311796,1736441459291,-975.12,0.00010617,2]
[348311797,1736441459300,-650.21,0.00010617,2]
[348311798,1736441459310,-509.6,0.00010617,2]
[348311799,1736441459322,-500.0,0.00010617,2]
[348311800,1736441459333,-500.0,0.00010617,2]
[348311801,1736441459343,-500.82,0.00010617,2]
[348311802,1736441459352,-500.0,0.00010617,2]
[348311803,1736441459362,-500.0,0.00010617,2]
[348311804,1736441459372,-500.0,0.00010617,2]
[348311805,1736441459383,-500.0,0.00010617,2]
[348311806,1736441459393,-1339.65,0.00010617,2]
[348311807,1736441459403,-1337.58,0.00010617,2]
[348311808,1736441459413,-500.0,0.00010617,2]
[348311809,1736441459423,-1238.69,0.00010617,2]
[348311810,1736441459432,-500.0,0.00010617,2]
[348311811,1736441459443,-500.0,0.00010617,2]
[348311812,1736441459455,-500.0,0.00010617,2]
[348311813,1736441459466,-500.0,0.00010617,2]
[348311814,1736441459476,-500.0,0.00010617,2]
[348311815,1736441459485,-500.0,0.00010617,2]
[348311816,1736441459497,-500.0,0.00010617,2]
[348311817,1736441459506,-500.0,0.00010617,2]
[348311818,1736441459516,-500.0,0.00010617,2]
[348311819,1736441459526,-591.57,0.00010617,2]
[348311820,1736441459536,-500.0,0.00010617,2]
[348311821,1736441459547,-616.25,0.00010617,2]
[348311822,1736441459556,-500.0,0.00010617,2]
[348311823,1736441459566,-500.0,0.00010617,2]
[348311824,1736441459576,-1572.29,0.00010617,2]
[348311825,1736441459586,-1702.64,0.00010617,2]
[348311826,1736441459597,-500.0,0.00010617,2]
[348311827,1736441459607,-500.0,0.00010617,2]
[348311828,1736441459617,-809.26,0.00010617,2]
[348311829,1736441459630,-500.0,0.00010617,2]
[348311830,1736441459639,-500.0,0.00010617,2]
[348311831,1736441459648,-1577.43,0.00010617,2]
[348311832,1736441459658,-635.34,0.00010617,2]
[348311833,1736441459668,-500.0,0.00010617,2]
[348311834,1736441459677,-500.0,0.00010617,2]
[348311835,1736441459687,-500.0,0.00010617,2]
[348311836,1736441459698,-500.0,0.00010617,2]
[348311837,1736441459708,-1568.5,0.00010617,2]
[348311838,1736441459718,-500.0,0.00010617,2]
[348311839,1736441459728,-604.17,0.00010617,2]
[348311840,1736441459738,-652.54,0.00010617,2]
[348311841,1736441459747,-500.0,0.00010617,2]
[348311842,1736441459757,-500.0,0.00010617,2]
[348311843,1736441459767,-534.02,0.00010617,2]
[348311844,1736441459776,-500.0,0.00010617,2]
[348311845,1736441459786,-500.0,0.00010617,2]
[348311846,1736441459795,-500.0,0.00010617,2]
[348311847,1736441459805,-500.0,0.00010617,2]
[348311848,1736441459815,-592.25,0.00010617,2]
[348311849,1736441459826,-559.1125783,0.00010617,2]
[348311850,1736441459835,-500.0,0.00010617,2]
[348311851,1736441459844,-500.0,0.00010617,2]
[348311852,1736441459855,-500.0,0.00010617,2]
[348311853,1736441459866,-500.0,0.00010617,2]
[348311854,1736441459876,-1683.15,0.00010617,2]
[348311855,1736441459885,-500.0,0.00010617,2]
[348311856,1736441459895,-500.0,0.00010617,2]
[348311857,1736441459904,-500.0,0.00010617,2]
[348311858,1736441459915,-500.0,0.00010617,2]
[348311859,1736441459926,-500.0,0.00010617,2]
[348311860,1736441459937,-961.33,0.00010617,2]
[348311861,1736441459948,-500.0,0.00010617,2]
[348311862,1736441459958,-500.0,0.00010617,2]
[348311863,1736441459967,-500.0,0.00010617,2]
[348311864,1736441459977,-500.0,0.00010617,2]
[348311865,1736441459986,-500.0,0.00010617,2]
[348311866,1736441459996,-500.0,0.00010617,2]
[348311867,1736441460005,-500.0,0.00010617,2]
[348311868,1736441460015,-1144.19,0.00010617,2]
[348311869,1736441460026,-1110.03,0.00010617,2]
[348311870,1736441460036,-1249.95,0.00010617,2]
[348311871,1736441460046,-515.87,0.00010617,2]
[348311872,1736441460055,-500.0,0.00010617,2]
[348311873,1736441460066,-5260.72,0.00010617,2]
[348311874,1736441460078,-500.0,0.00010617,2]
[348311875,1736441460088,-500.0,0.00010617,2]
[348311876,1736441460098,-500.0,0.00010617,2]
[348311877,1736441460108,-2184.19,0.00010617,2]
[348311878,1736441460117,-685.22,0.00010617,2]
[348311879,1736441460127,-500.0,0.00010617,2]
[348311880,1736441460136,-3800.29,0.00010617,2]
[348311881,1736441460146,-500.0,0.00010617,2]
[348311882,1736441460155,-1181.4,0.00010617,2]
[348311883,1736441460165,-500.0,0.00010617,2]
[348311884,1736441460174,-500.0,0.00010617,2]
[348311885,1736441460184,-11841.77,0.00010617,2]
[348311886,1736441460193,-500.0,0.00010617,2]
[348311887,1736441460202,-1137.25,0.00010617,2]
[348311888,1736441460212,-500.0,0.00010617,2]
[348311889,1736441460222,-500.0,0.00010617,2]
[348311890,1736441460231,-500.0,0.00010617,2]
[348311891,1736441460241,-923.92,0.00010617,2]
[348311892,1736441460251,-1450.49,0.00010617,2]
[348311893,1736441460260,-500.0,0.00010617,2]
[348311894,1736441460270,-500.0,0.00010617,2]
[348311895,1736441460280,-500.0,0.00010617,2]
[348311896,1736441460290,-500.0,0.00010617,2]
[348311897,1736441460299,-500.0,0.00010617,2]
[348311898,1736441460308,-500.0,0.00010617,2]
[348311899,1736441460317,-2921.67,0.00010617,2]
[348311900,1736441460330,-500.0,0.00010617,2]
[348311901,1736441460339,-500.0,0.00010617,2]
[348311902,1736441460349,-500.0,0.00010617,2]
[348311903,1736441460359,-2065.25,0.00010617,2]
[348311904,1736441460368,-500.0,0.00010617,2]
[348311905,1736441460378,-556.2,0.00010617,2]
[348311906,1736441460387,-3527.14,0.00010617,2]
[348311907,1736441460397,-500.0,0.00010617,2]
[348311908,1736441460406,-500.0,0.00010617,2]
[348311909,1736441460415,-582.4,0.00010617,2]
[348311910,1736441460424,-553.55,0.00010617,2]
[348311911,1736441460434,-759.16,0.00010617,2]
[348311912,1736441460444,-500.0,0.00010617,2]
[348311913,1736441460457,-944.55,0.00010617,2]
[348311914,1736441460467,-500.0,0.00010617,2]
[348311915,1736441460666,-500.0,0.00010617,2]
[348311916,1736441460677,-500.0,0.00010617,2]
[348311917,1736441460686,-635.96777953,0.00010617,2]
[348311918,1736441460695,-500.0,0.00010617,2]
[348311919,1736441460705,-591.72,0.00010617,2]
[348311920,1736441460715,-6010.0,0.00010617,2]
[348311921,1736441460724,-5318.43,0.00010617,2]
[348311922,1736441460733,-6316.42,0.00010617,2]
[348311923,1736441460743,-500.0,0.00010617,2]
[348311924,1736441460752,-500.0,0.00010617,2]
[348311925,1736441460762,-7304.93,0.00010617,2]
[348311926,1736441460770,-622.88,0.00010617,2]
[348311927,1736441460779,-648.72,0.00010617,2]
[348311928,1736441460788,-1989.69,0.00010617,2]
[348311929,1736441460797,-500.0,0.00010617,2]
[348311930,1736441460807,-3913.02,0.00010617,2]
[348311931,1736441460816,-500.0,0.00010617,2]
[348311932,1736441460828,-500.0,0.00010617,2]
[348311933,1736441460837,-500.0,0.00010617,2]
[348311934,1736441460847,-1014.4,0.00010617,2]
[348311935,1736441460857,-1246.61,0.00010617,2]
[348311936,1736441460866,-500.0,0.00010617,2]
[348311937,1736441460875,-500.0,0.00010617,2]
[348311938,1736441460885,-500.0,0.00010617,2]
[348311939,1736441460894,-809.03,0.00010617,2]
[348311940,1736441460904,-4345.25,0.00010617,2]
[348311941,1736441460915,-2632.46,0.00010617,2]
[348311942,1736441460926,-500.0,0.00010617,2]
[348311943,1736441460935,-1004.32,0.00010617,2]
[348311944,1736441460945,-500.0,0.00010617,2]
[348311945,1736441460954,-500.0,0.00010617,2]
[348311946,1736441460964,-500.0,0.00010617,2]
[348311947,1736441460973,-500.0,0.00010617,2]
[348311948,1736441460982,-500.0,0.00010617,2]
[348311949,1736441460992,-6036.54,0.00010617,2]
[348311950,1736441461001,-1255.86,0.00010617,2]
[348311951,1736441461011,-2559.11,0.00010617,2]
[348311952,1736441461020,-500.0,0.00010617,2]
[348311953,1736441461030,-4108.47,0.00010617,2]
[348311954,1736441461039,-500.0,0.00010617,2]
[348311955,1736441461049,-645.14,0.00010617,2]
[348311956,1736441461059,-1341.07,0.00010617,2]
[348311957,1736441461069,-534.83,0.00010617,2]
[348311958,1736441461079,-638.93,0.00010617,2]
[348311959,1736441461088,-500.0,0.00010617,2]
[348311960,1736441461098,-500.0,0.00010617,2]
[348311961,1736441461108,-500.0,0.00010617,2]
[348311962,1736441461118,-852.72,0.00010617,2]
[348311963,1736441461128,-500.0,0.00010617,2]
[348311964,1736441461137,-500.0,0.00010617,2]
[348311965,1736441461147,-500.0,0.00010617,2]
[348311966,1736441461157,-526.64,0.00010617,2]
[348311967,1736441461166,-1606.95,0.00010617,2]
[348311968,1736441461176,-541.32,0.00010617,2]
[348311969,1736441461185,-500.0,0.00010617,2]
[348311970,1736441461195,-500.0,0.00010617,2]
[348311971,1736441461204,-500.0,0.00010617,2]
[348311972,1736441461213,-1457.55,0.00010617,2]
[348311973,1736441461223,-1241.59,0.00010617,2]
[348311974,1736441461232,-500.0,0.00010617,2]
[348311975,1736441461242,-659.1,0.00010617,2]
[348311976,1736441461252,-500.0,0.00010617,2]
[348311977,1736441461261,-934.94,0.00010617,2]
[348311978,1736441461270,-1914.78,0.00010618,2]
[348311979,1736441461280,-500.0,0.00010618,2]
[348311980,1736441461289,-500.0,0.00010618,2]
[348311981,1736441461299,-554.51,0.00010618,2]
[348311982,1736441461310,-500.0,0.00010618,2]
[348311983,1736441461323,-1402.25,0.00010618,2]
[348311984,1736441461334,-500.0,0.00010618,2]
[348311985,1736441461344,-3539.4,0.00010618,2]
[348311986,1736441461354,-500.0,0.00010618,2]
[348311987,1736441461363,-500.0,0.00010618,2]
[348311988,1736441461372,-500.0,0.00010618,2]
[348311989,1736441461381,-500.0,0.00010618,2]
[348311990,1736441461390,-500.0,0.00010618,2]
[348311991,1736441461400,-500.0,0.00010618,2]
[348311992,1736441461409,-500.0,0.00010618,2]
[348311993,1736441461418,-923.57,0.00010618,2]
[348311994,1736441461427,-500.0,0.00010618,2]
[348311995,1736441461437,-500.0,0.00010618,2]
[348311996,1736441461448,-500.0,0.00010618,2]
[348311997,1736441461460,-500.0,0.00010618,2]
[348311998,1736441461469,-500.0,0.00010618,2]
[348311999,1736441461479,-500.0,0.00010618,2]
[348312000,1736441461488,-500.0,0.00010618,2]
[348312001,1736441461498,-500.0,0.00010618,2]
[348312002,1736441461507,-500.0,0.00010618,2]
[348312003,1736441461516,-500.0,0.00010618,2]
[348312004,1736441461526,-584.58718872,0.00010618,2]
[348312005,1736441461536,-500.0,0.00010618,2]
[348312006,1736441461546,-500.0,0.00010618,2]
[348312007,1736441461555,-500.0,0.00010618,2]
[348312008,1736441461564,-500.0,0.00010618,2]
[348312009,1736441461574,-500.0,0.00010618,2]
[348312010,1736441461584,-500.0,0.00010618,2]
[348312011,1736441461592,-500.0,0.00010618,2]
[348312012,1736441461601,-500.0,0.00010618,2]
[348312013,1736441461611,-500.0,0.00010618,2]
[348312014,1736441461620,-500.0,0.00010618,2]
[348312015,1736441461630,-500.0,0.00010618,2]
[348312016,1736441461639,-1736.76,0.00010618,2]
[348312017,1736441461649,-500.0,0.00010618,2]
[348312018,1736441461658,-500.0,0.00010618,2]
[348312019,1736441461667,-500.0,0.00010618,2]
[348312020,1736441461677,-1509.14,0.00010618,2]
[348312021,1736441461686,-663.82,0.00010618,2]
[348312022,1736441461696,-500.0,0.00010618,2]
[348312023,1736441461706,-500.0,0.00010618,2]
[348312024,1736441461715,-500.0,0.00010618,2]
[348312025,1736441461725,-2089.51,0.00010618,2]
[348312026,1736441461735,-500.0,0.00010618,2]
[348312027,1736441461744,-500.0,0.00010618,2]
[348312028,1736441461753,-500.0,0.00010618,2]
[348312029,1736441461763,-500.0,0.00010618,2]
[348312030,1736441461773,-562.89,0.00010618,2]
[348312031,1736441461783,-500.0,0.00010618,2]
[348312032,1736441461792,-500.0,0.00010618,2]
[348312033,1736441461802,-500.0,0.00010618,2]
[348312034,1736441461811,-4625.91,0.00010618,2]
[348312035,1736441461820,-567.47,0.00010618,2]
[348312036,1736441461830,-500.0,0.00010618,2]
[348312037,1736441461839,-500.0,0.00010618,2]
[348312038,1736441461849,-500.0,0.00010618,2]
[348312039,1736441461858,-500.0,0.00010618,2]
[348312040,1736441461867,-500.0,0.00010618,2]
[348312041,1736441461877,-1958.59,0.00010618,2]
[348312042,1736441461887,-500.0,0.00010618,2]
[348312043,1736441461896,-500.0,0.00010618,2]
[348312044,1736441461906,-543.15,0.00010618,2]
[348312045,1736441461915,-500.0,0.00010618,2]
[348312046,1736441461925,-500.0,0.00010618,2]
[348312047,1736441461935,-500.0,0.00010618,2]
[348312048,1736441461944,-500.0,0.00010618,2]
[348312049,1736441461954,-500.0,0.00010618,2]
[348312050,1736441461964,-500.0,0.00010618,2]
[348312051,1736441461974,-1303.99,0.00010618,2]
[348312052,1736441461983,-500.0,0.00010618,2]
[348312053,1736441461992,-500.0,0.00010618,2]
[348312054,1736441462002,-500.0,0.00010618,2]
[348312055,1736441462011,-1603.31,0.00010618,2]
[348312056,1736441462020,-941.674393,0.00010618,2]
[348312057,1736441462030,-500.0,0.00010618,2]
[348312058,1736441462039,-784.78,0.00010618,2]
[348312059,1736441462049,-500.0,0.00010618,2]
[348312060,1736441462058,-500.0,0.00010618,2]
[348312061,1736441462068,-609.64,0.00010618,2]
[348312062,1736441462078,-500.0,0.00010618,2]
[348312063,1736441462088,-999.21,0.00010618,2]
[348312064,1736441462097,-870.268303,0.00010618,2]
[348312065,1736441462107,-691.27,0.00010618,2]
[348312066,1736441462115,-500.0,0.00010618,2]
[348312067,1736441462124,-645.86574053,0.00010618,2]
[348312068,1736441462134,-1297.89,0.00010618,2]
[348312069,1736441462143,-500.0,0.00010618,2]
[348312070,1736441462152,-3889.56,0.00010618,2]
[348312071,1736441462162,-500.0,0.00010618,2]
[348312072,1736441462171,-500.0,0.00010618,2]
[348312073,1736441462181,-787.09,0.00010618,2]
[348312074,1736441462190,-500.0,0.00010618,2]
[348312075,1736441462199,-725.62,0.00010618,2]
[348312076,1736441462209,-500.0,0.00010618,2]
[348312077,1736441462218,-2344.21,0.00010618,2]
[348312078,1736441462227,-500.0,0.00010618,2]
[348312079,1736441462236,-500.0,0.00010618,2]
[348312080,1736441462245,-500.0,0.00010618,2]
[348312081,1736441462255,-660.24,0.00010618,2]
[348312082,1736441462264,-500.0,0.00010618,2]
[348312083,1736441462272,-500.0,0.00010618,2]
[348312084,1736441462282,-500.0,0.00010618,2]
[348312085,1736441462291,-1062.57,0.00010618,2]
[348312086,1736441462300,-901.9,0.00010618,2]
[348312087,1736441462310,-500.0,0.00010618,2]
[348312088,1736441462319,-500.0,0.00010618,2]
[348312089,1736441462330,-695.31,0.00010618,2]
[348312090,1736441462339,-500.0,0.00010618,2]
[348312091,1736441462349,-500.0,0.00010618,2]
[348312092,1736441462359,-500.0,0.00010618,2]
[348312093,1736441462369,-500.0,0.00010618,2]
[348312094,1736441462379,-500.0,0.00010618,2]
[348312095,1736441462389,-500.0,0.00010618,2]
[348312096,1736441462398,-500.0,0.00010618,2]
[348312097,1736441462409,-500.0,0.00010618,2]
[348312098,1736441462418,-500.0,0.00010618,2]
[348312099,1736441462428,-500.0,0.00010618,2]
[348312100,1736441462437,-500.0,0.00010618,2]
[348312101,1736441462447,-532.84,0.00010618,2]
[348312102,1736441462460,-557.66,0.00010618,2]
[348312103,1736441462469,-500.0,0.00010618,2]
[348312104,1736441462478,-500.0,0.00010618,2]
[348312105,1736441462488,-500.0,0.00010618,2]
[348312106,1736441462498,-500.0,0.00010618,2]
[348312107,1736441462508,-500.0,0.00010618,2]
[348312108,1736441462517,-500.0,0.00010618,2]
[348312109,1736441462528,-590.63,0.00010618,2]
[348312110,1736441462537,-676.47,0.00010618,2]
[348312111,1736441462547,-500.0,0.00010618,2]
[348312112,1736441462556,-5512.17,0.00010618,2]
[348312113,1736441462567,-500.0,0.00010618,2]
[348312114,1736441462577,-1014.36,0.00010618,2]
[348312115,1736441462587,-500.0,0.00010618,2]
[348312116,1736441462597,-500.0,0.00010618,2]
[348312117,1736441462606,-500.0,0.00010618,2]
[348312118,1736441462615,-540.3,0.00010618,2]
[348312119,1736441462626,-500.0,0.00010618,2]
[348312120,1736441462636,-223.171829,0.00010618,2]
[348312121,1736441462646,-500.0,0.00010618,2]
[348312122,1736441462656,-223.171829,0.00010618,2]
[348312123,1736441462667,-500.0,0.00010618,2]
[348312124,1736441462676,-500.0,0.00010618,2]
[348312125,1736441462686,-4726.09,0.00010618,2]
[348312126,1736441462696,-500.0,0.00010618,2]
[348312127,1736441462708,-501.08,0.00010618,2]
[348312128,1736441462717,-500.0,0.00010618,2]
[348312129,1736441462728,-500.0,0.00010618,2]
[348312130,1736441462737,-1135.75,0.00010618,2]
[348312131,1736441462749,-1007.34,0.00010618,2]
[348312132,1736441462758,-569.44,0.00010618,2]
[348312133,1736441462768,-500.0,0.00010618,2]
[348312134,1736441462777,-588.54,0.00010618,2]
[348312135,1736441462786,-500.0,0.00010618,2]
[348312136,1736441462795,-500.0,0.00010618,2]
[348312137,1736441462804,-884.79,0.00010618,2]
[348312138,1736441462814,-584.57,0.00010618,2]
[348312139,1736441462825,-500.0,0.00010618,2]
[348312140,1736441462836,-547.98,0.00010618,2]
[348312141,1736441462846,-500.0,0.00010618,2]
[348312142,1736441462855,-724.67,0.00010618,2]
[348312143,1736441462865,-2877.28,0.00010618,2]
[348312144,1736441462875,-500.0,0.00010618,2]
[348312145,1736441462885,-1487.4,0.00010618,2]
[348312146,1736441462894,-637.1,0.00010618,2]
[348312147,1736441462904,-639.61,0.00010618,2]
[348312148,1736441462913,-539.81,0.00010618,2]
[348312149,1736441462922,-500.0,0.00010618,2]
[348312150,1736441462932,-500.0,0.00010618,2]
[348312151,1736441462941,-500.0,0.00010618,2]
[348312152,1736441462951,-603.8,0.00010618,2]
[348312153,1736441462960,-500.0,0.00010618,2]
[348312154,1736441462970,-500.0,0.00010618,2]
[348312155,1736441462980,-500.0,0.00010618,2]
[348312156,1736441462990,-507.27,0.00010618,2]
[348312157,1736441462999,-5704.59,0.00010618,2]
[348312158,1736441463008,-1361.48,0.00010618,2]
[348312159,1736441463018,-500.0,0.00010618,2]
[348312160,1736441463028,-500.0,0.00010618,2]
[348312161,1736441463038,-500.25,0.00010618,2]
[348312162,1736441463048,-500.0,0.00010618,2]
[348312163,1736441463057,-579.83,0.00010618,2]
[348312164,1736441463067,-875.06,0.00010618,2]
[348312165,1736441463079,-500.0,0.00010618,2]
[348312166,1736441463088,-730.94,0.00010618,2]
[348312167,1736441463098,-500.0,0.00010618,2]
[348312168,1736441463107,-500.0,0.00010618,2]
[348312169,1736441463117,-500.0,0.00010618,2]
[348312170,1736441463126,-500.0,0.00010618,2]
[348312171,1736441463136,-500.0,0.00010618,2]
[348312172,1736441463145,-500.0,0.00010618,2]
[348312173,1736441463154,-500.0,0.00010618,2]
[348312174,1736441463164,-773.49,0.00010618,2]
[348312175,1736441463173,-500.0,0.00010618,2]
[348312176,1736441463183,-500.0,0.00010618,2]
[348312177,1736441463192,-500.0,0.00010618,2]
[348312178,1736441463202,-975.6,0.00010618,2]
[348312179,1736441463211,-500.0,0.00010618,2]
[348312180,1736441463221,-998.39,0.00010618,2]
[348312181,1736441463231,-500.0,0.00010618,2]
[348312182,1736441463241,-701.43,0.00010618,2]
[348312183,1736441463251,-500.0,0.00010618,2]
[348312184,1736441463260,-500.0,0.00010618,2]
[348312185,1736441463270,-500.0,0.00010618,2]
[348312186,1736441463279,-500.0,0.00010618,2]
[348312187,1736441463289,-500.0,0.00010618,2]
[348312188,1736441463298,-500.0,0.00010618,2]
[348312189,1736441463308,-500.0,0.00010618,2]
[348312190,1736441463318,-500.0,0.00010618,2]
[348312191,1736441463329,-500.0,0.00010618,2]
[348312192,1736441463339,-1565.83,0.00010618,2]
[348312193,1736441463348,-500.0,0.00010618,2]
[348312194,1736441463358,-500.0,0.00010618,2]
[348312195,1736441463367,-500.0,0.00010618,2]
[348312196,1736441463376,-500.0,0.00010618,2]
[348312197,1736441463385,-500.0,0.00010618,2]
[348312198,1736441463395,-500.0,0.00010618,2]
[348312199,1736441463404,-656.29,0.00010618,2]
[348312200,1736441463413,-1916.01,0.00010618,2]
[348312201,1736441463422,-594.19,0.00010618,2]
[348312202,1736441463431,-500.0,0.00010618,2]
[348312203,1736441463441,-500.0,0.00010618,2]
[348312204,1736441463451,-500.0,0.00010618,2]
[348312205,1736441463463,-500.0,0.00010618,2]
[348312206,1736441463472,-500.0,0.00010618,2]
[348312207,1736441463481,-1153.48,0.00010618,2]